bitfinex/quotes_ETHUSD_20240709
["timestamp","ask_amount","ask_price","bid_price","bid_amount"]
[1720536703093,0.30136085,3063.6,3062.3,0.60426174]
[1720536703876,0.30136085,3063.6,3062.3,6.86973174]
[1720536704044,3.45194909,3063.9,3062.5,3.26522]
[1720536704364,2.4311,3063.9,3062.7,3.26502]
[1720536704564,0.24311,3063.8,3062.6,6.26518]
[1720536704725,0.24311,3063.8,3062.6,3.31446031]
[1720536704923,0.24311,3063.8,3062.7,3.26508]
[1720536705128,8.43084909,3064.3,3063.1,3.26458]
[1720536705365,8.43084909,3064.3,3063.2,0.652934]
[1720536705366,7.41,3064.3,3063.2,0.652934]
[1720536705561,0.63883274,3064.4,3063.2,3.26455]
[1720536705767,0.63883274,3064.4,3063.1,0.04924686]
[1720536705768,0.63883274,3064.4,3063.1,3.31388677]
[1720536705940,0.39620818,3064.3,3063.1,3.31388677]
[1720536706269,1.36113212,3064.7,3063.1,3.31388677]
[1720536706270,1.02084909,3064.7,3063.4,3.26434]
[1720536706768,8.43084909,3064.8,3063.4,3.26434]
[1720536706934,8.43084909,3064.8,3063.1,2.2745]
[1720536706935,1.02084909,3064.5,3063.1,2.2745]
[1720536707347,1.02084909,3064.5,3063.1,5.53911]
[1720536707348,1.02084909,3064.4,3063.1,5.53911]
[1720536707554,1.22501891,3064.3,3063.1,6.093021]
[1720536708004,0.20416982,3064.3,3063.2,3.26453]
[1720536708153,1.02084909,3064.6,3063.4,3.26433]
[1720536708355,8.43084909,3064.8,3063.9,3.26375]
[1720536708556,1.02084909,3064.9,3063.7,3.26395]
[1720536709051,1.02084909,3064.9,3063.6,3.26403]
[1720536709052,1.02084909,3064.8,3063.6,3.26403]
[1720536709294,1.1024343,3065.0,3063.5,3.26415]
[1720536709480,4.06258253,3064.9,3063.6,0.326415]
[1720536709773,4.06258253,3064.9,3063.6,3.590525]
[1720536709774,0.55006873,3064.9,3063.6,3.590525]
[1720536709976,0.55006873,3064.9,3063.7,0.6854675]
[1720536710177,0.55006873,3064.9,3063.5,3.26415]
[1720536710178,0.08158869,3064.8,3063.3,3.26445]
[1720536710451,1.10243778,3064.8,3063.4,3.0]
[1720536710665,0.16525065,3064.7,3063.5,0.626445]
[1720536710986,0.24684733,3064.7,3063.5,0.626445]
[1720536711149,1.02267934,3064.6,3063.1,5.74214457]
[1720536711348,1.1042775,3064.5,3063.1,5.74214457]
[1720536711563,1.02267934,3064.4,3063.1,2.91373357]
[1720536711762,1.02267934,3064.2,3062.7,3.26502]
[1720536712058,1.10428746,3064.1,3062.7,3.26502]
[1720536712353,0.35522875,3064.0,3062.8,3.26496]
[1720536714079,0.35522875,3064.0,3062.7,4.15014]
[1720536714283,0.35522875,3064.0,3062.8,3.26492]
[1720536714860,1.02267934,3064.2,3063.7,3.26393]
[1720536715103,2.04420435,3064.8,3063.5,3.26418]
[1720536715104,1.02267934,3064.8,3063.5,3.26418]
[1720536715258,1.38999923,3064.7,3063.3,3.590904]
[1720536715459,1.37183978,3064.6,3063.3,0.326454]
[1720536715798,1.13057192,3064.5,3063.3,6.26443]
[1720536715997,0.24126786,3064.6,3063.5,3.26415]
[1720536716157,1.13054323,3064.5,3063.5,6.5283]
[1720536716358,1.02267934,3064.8,3063.6,0.0492272]
[1720536716666,1.21210708,3064.7,3063.1,3.0]
[1720536716859,1.21210708,3064.7,3063.5,3.26415]
[1720536716860,1.13052497,3064.6,3063.5,3.26415]
[1720536717056,1.13052497,3064.6,3063.1,3.0]
[1720536717264,1.19555304,3064.5,3063.1,6.26459]
[1720536717481,1.35236617,3064.4,3063.3,3.26445]
[1720536717708,1.35236617,3064.4,3063.1,6.26459]
[1720536717709,0.30670761,3064.9,3063.6,3.26412]
[1720536717876,3.0,3065.2,3063.1,3.0]
[1720536717877,1.13059324,3064.8,3063.8,3.26389]
[1720536718092,1.70342614,3065.3,3063.8,3.26389]
[1720536718093,1.02205568,3065.1,3064.0,3.26369]
[1720536718443,1.13042919,3065.0,3063.8,5.52955]
[1720536718728,11.55592614,3065.4,3064.5,3.26311]
[1720536718729,8.43205568,3065.4,3064.5,3.26311]
[1720536718859,1.70342614,3065.7,3064.6,3.63849415]
[1720536718860,1.13028638,3065.3,3064.6,3.63849415]
[1720536719059,4.16192614,3066.0,3064.8,3.2628]
[1720536719060,3.48055568,3066.0,3064.8,3.2628]
[1720536719405,1.54632989,3065.9,3064.6,3.26299]
[1720536719571,1.13013728,3065.8,3064.7,3.31209543]
[1720536719774,1.13013728,3065.7,3064.8,0.04915535]
[1720536719974,5.13442614,3066.3,3064.9,3.26271]
[1720536719975,1.02205568,3066.1,3064.9,3.26271]
[1720536720301,1.13001206,3066.0,3065.0,6.57424121]
[1720536720484,1.02205568,3066.7,3065.7,3.26182]
[1720536720702,1.36832053,3066.6,3065.8,3.26177]
[1720536720993,4.05264514,3067.2,3065.7,3.26186]
[1720536720994,0.08153103,3067.0,3065.7,3.26186]
[1720536721156,0.08153103,3066.8,3065.5,3.26202]
[1720536721359,1.12975466,3066.9,3065.5,3.26202]
[1720536721360,1.21128778,3066.7,3065.6,6.26194]
[1720536721658,1.21128778,3066.7,3065.7,3.26186]
[1720536721659,0.08153312,3066.7,3065.7,3.26186]
[1720536721967,0.08153683,3067.0,3065.7,3.26186]
[1720536722236,0.61849645,3067.0,3065.7,3.26186]
[1720536722430,0.40526451,3067.1,3066.2,3.26131]
[1720536722558,0.0815304,3067.4,3065.9,5.53344]
[1720536722761,1.12973022,3067.3,3065.9,8.79504]
[1720536722959,0.48041966,3067.5,3066.1,6.52276]
[1720536723196,3.44145568,3067.7,3066.1,6.52276]
[1720536723197,2.4194,3067.7,3066.2,0.04905954]
[1720536723399,1.51599198,3067.6,3066.2,0.04905954]
[1720536723638,0.38636674,3067.6,3066.0,0.04905944]
[1720536723788,4.92274096,3067.5,3064.9,2.3681]
[1720536723989,4.92274096,3067.5,3065.2,3.26236]
[1720536723990,10.841,3067.0,3065.2,3.26236]
[1720536724186,1.16564174,3066.9,3065.2,3.26239]
[1720536724441,1.16564174,3066.9,3064.9,2.3681]
[1720536724442,5.7491,3066.7,3064.9,2.3681]
[1720536724759,5.7491,3066.7,3064.6,6.17678357]
[1720536724760,3.431,3066.4,3064.6,2.91373357]
[1720536724898,3.431,3066.2,3064.4,6.52037954]
[1720536725226,8.43205568,3066.5,3063.5,4.54697065]
[1720536725227,5.8886,3065.9,3063.7,2.4101]
[1720536725385,0.08157635,3065.8,3064.0,3.26361]
[1720536725590,0.08157635,3065.8,3064.0,3.26368]
[1720536725591,3.51257638,3065.7,3064.0,3.26368]
[1720536725811,3.55,3065.8,3064.0,3.26368]
[1720536725812,0.70625764,3065.6,3064.0,0.04918956]
[1720536726034,2.4576,3065.9,3064.6,3.26297]
[1720536726230,2.4576,3065.9,3064.7,3.31207325]
[1720536726453,0.08155687,3065.8,3064.4,3.26326]
[1720536726591,1.06831687,3065.8,3064.2,0.724559]
[1720536726789,0.55,3065.7,3064.1,3.26359]
[1720536726994,0.55,3065.7,3064.3,3.26336]
[1720536726995,0.08157153,3065.6,3064.3,3.26336]
[1720536727330,0.08157153,3065.6,3063.9,3.26374]
[1720536727546,0.40625715,3065.5,3064.2,3.26342]
[1720536727690,0.63157814,3065.7,3064.2,3.26342]
[1720536727892,0.55,3065.7,3064.4,3.26327]
[1720536728127,0.98676,3065.8,3064.4,3.26327]
[1720536728348,0.98676,3065.8,3063.7,5.67411]
[1720536728492,0.344436,3065.7,3064.1,6.52702]
[1720536728844,3.85700536,3065.7,3063.8,3.831301]
[1720536729047,3.85700536,3065.7,3063.9,3.0]
[1720536729048,0.55,3065.6,3063.9,3.0]
[1720536729221,0.08157813,3065.5,3063.9,3.0]
[1720536729422,0.55,3065.4,3063.9,3.0]
[1720536729722,0.08157813,3065.3,3064.0,3.26366]
[1720536729905,0.08157813,3065.3,3064.1,3.0]
[1720536730229,0.48437654,3065.6,3064.3,3.26337]
[1720536730431,0.344436,3065.7,3064.3,3.31254152]
[1720536730738,0.344436,3065.7,3063.7,2.4101]
[1720536730739,7.41,3065.5,3063.7,2.4101]
[1720536731040,2.50300154,3065.4,3063.4,4.11027954]
[1720536731232,7.91136845,3065.3,3063.4,4.11027954]
[1720536731406,3.431,3065.1,3063.2,5.6203]
[1720536731612,11.62221413,3065.0,3063.2,5.62029]
[1720536731807,0.55,3064.9,3063.2,2.3558]
[1720536731996,1.10415952,3064.8,3063.6,3.26412]
[1720536732409,1.10415952,3064.8,3063.3,0.28481236]
[1720536732410,1.10415952,3064.8,3063.3,0.23558]
[1720536732619,1.01167491,3064.7,3063.3,0.23558]
[1720536732900,0.46167491,3064.7,3063.5,3.26421]
[1720536733105,7.41,3065.0,3063.9,3.26378]
[1720536733328,7.41,3065.0,3064.0,0.37558014]
[1720536733694,7.41,3065.0,3064.0,6.853588]
[1720536733893,7.41,3065.0,3064.1,3.26358]
[1720536734131,7.41,3065.0,3064.1,3.31276995]
[1720536734348,7.41,3065.0,3063.5,7.2462]
[1720536734349,7.41,3065.0,3063.9,3.26375]
[1720536734550,8.28746698,3065.0,3064.0,0.326375]
[1720536734842,8.28746698,3065.0,3063.7,3.264]
[1720536735057,8.28746698,3065.0,3064.3,3.26337]
[1720536735058,7.41,3065.0,3064.3,3.26337]
[1720536735268,7.41,3065.0,3064.2,3.26346]
[1720536735604,7.41,3065.0,3064.3,3.26329]
[1720536735804,7.41,3065.0,3064.4,3.915945]
[1720536736121,7.41,3065.0,3064.4,3.26327]
[1720536736804,7.41,3065.0,3064.5,3.31233129]
[1720536737005,7.41,3065.0,3064.7,3.26289]
[1720536737257,19.47,3066.2,3064.9,3.26274]
[1720536737258,7.41,3065.7,3064.9,3.26274]
[1720536737444,14.097,3066.1,3065.0,0.0491365]
[1720536737762,1.94062074,3066.0,3064.8,0.37542556]
[1720536737916,0.08155934,3065.9,3064.4,3.0]
[1720536738113,0.08155934,3065.9,3064.3,3.26333]
[1720536738114,0.20221801,3065.8,3064.3,3.26333]
[1720536738310,0.20221801,3065.8,3064.6,3.26297]
[1720536738514,0.20221801,3065.8,3064.7,0.326297]
[1720536738815,12.15,3066.1,3065.2,3.26242]
[1720536739456,7.41,3066.2,3065.7,3.26183]
[1720536739658,19.56,3066.8,3066.0,3.26151]
[1720536739953,19.56,3066.8,3065.9,3.26168]
[1720536739954,19.56,3066.8,3066.1,3.26144]
[1720536740517,19.56,3066.8,3066.2,0.04905962]
[1720536740753,26.88,3067.3,3066.4,3.26114]
[1720536740976,19.56,3067.7,3066.4,3.26114]
[1720536741176,2.1873,3067.6,3066.5,3.26102]
[1720536741352,19.56,3067.7,3066.7,3.26076]
[1720536741659,19.56,3067.7,3066.7,4.13588654]
[1720536741857,19.56,3067.7,3066.6,5.4415]
[1720536742015,19.56,3067.7,3066.6,2.4415]
[1720536742222,19.56,3067.7,3066.0,4.11027954]
[1720536742223,0.08150449,3067.6,3066.1,2.3294]
[1720536742421,2.03750449,3067.6,3066.1,2.3294]
[1720536742641,1.956,3067.6,3066.1,2.3294]
[1720536742842,2.03751724,3067.6,3066.1,2.3294]
[1720536743044,1.956,3067.6,3066.2,3.26128]
[1720536743252,19.56,3067.7,3066.3,3.26125]
[1720536743253,1.93162074,3067.5,3066.3,3.26125]
[1720536743436,0.19316207,3067.4,3066.5,3.26104]
[1720536743871,0.19316207,3067.4,3066.4,0.0490306]
[1720536744027,1.93162074,3067.5,3066.4,0.0490306]
[1720536744224,1.93162074,3067.5,3066.6,3.26086]
[1720536744570,7.41,3067.7,3066.9,3.26054]
[1720536744777,7.41,3067.7,3067.0,0.04900122]
[1720536744957,7.41,3067.7,3067.1,3.59134412]
[1720536745261,19.56,3068.2,3067.3,3.26012]
[1720536745470,7.41,3068.2,3067.5,3.25997]
[1720536745652,7.41,3068.2,3067.3,0.30489866]
[1720536745856,7.41,3068.2,3067.4,3.26002]
[1720536746022,7.41,3068.2,3067.5,3.0]
[1720536746226,7.41,3068.2,3067.5,6.25991]
[1720536746420,7.41,3068.2,3067.5,6.25997]
[1720536746725,8.151,3068.2,3067.5,3.0]
[1720536746955,8.151,3068.2,3067.3,3.26011]
[1720536746956,8.151,3068.2,3067.1,3.26031]
[1720536747157,8.151,3068.2,3067.2,3.0]
[1720536747336,8.151,3068.2,3067.0,4.11027954]
[1720536747337,0.89659195,3068.1,3067.0,4.11027954]
[1720536747548,0.8151,3068.1,3067.0,4.11027954]
[1720536747736,0.8151,3068.1,3067.2,3.26022]
[1720536748026,7.41,3068.2,3067.5,3.25997]
[1720536748229,7.41,3068.2,3067.7,3.25973]
[1720536748637,7.41,3068.2,3067.5,3.25997]
[1720536748638,7.41,3068.2,3067.5,3.25989]
[1720536748839,0.741,3068.1,3067.3,3.26012]
[1720536749048,0.741,3068.1,3067.4,6.26005]
[1720536749371,7.41,3068.2,3067.6,3.2598]
[1720536749543,7.41,3068.2,3067.5,3.25988]
[1720536749544,7.41,3068.2,3067.7,3.25974]
[1720536749741,7.41,3068.2,3067.5,5.61928]
[1720536749955,8.151,3068.2,3067.4,3.0]
[1720536750274,8.151,3068.2,3067.4,3.26008]
[1720536750442,7.41,3068.2,3067.6,3.25979]
[1720536750624,7.41,3068.2,3067.5,3.25997]
[1720536750830,7.41,3068.2,3067.0,6.46967954]
[1720536750831,0.08148018,3068.1,3067.0,4.11027954]
[1720536751063,0.74914802,3068.0,3067.0,7.37077954]
[1720536751267,7.41,3068.2,3067.7,3.25975]
[1720536751684,19.47,3068.5,3067.7,3.25975]
[1720536751685,19.47,3068.5,3067.8,3.25958]
[1720536751831,19.47,3068.5,3067.7,3.25966]
[1720536751832,7.41,3068.7,3067.9,3.25954]
[1720536752031,8.151,3068.7,3067.9,3.25949]
[1720536752256,8.151,3068.7,3068.0,3.25942]
[1720536752476,7.41,3069.1,3068.5,3.25891]
[1720536752700,7.41,3069.6,3068.5,3.25891]
[1720536752865,7.41,3069.6,3068.3,3.25905]
[1720536752866,7.64231,3069.6,3068.3,6.5181]
[1720536753052,7.64231,3069.6,3068.3,3.25905]
[1720536753403,0.996541,3069.5,3068.3,3.25907]
[1720536753695,0.996541,3069.5,3068.3,3.25906]
[1720536753873,0.996541,3069.5,3068.4,3.30787192]
[1720536754192,0.996541,3069.5,3068.5,3.25887]
[1720536754499,7.64231,3069.6,3068.7,3.25864]
[1720536754790,7.64231,3069.6,3068.9,3.25841]
[1720536754993,7.64231,3069.6,3068.7,3.101247]
[1720536755294,7.64231,3069.6,3068.5,3.25882]
[1720536755490,7.41,3069.6,3068.9,3.25844]
[1720536755854,7.41,3069.6,3068.7,6.51725]
[1720536756053,7.41,3069.6,3068.6,3.0]
[1720536756282,7.41,3069.6,3069.1,3.25819]
[1720536756680,7.41,3069.6,3068.8,3.25851]
[1720536756880,7.41,3069.6,3068.6,3.0]
[1720536756881,7.41,3069.6,3068.7,3.25869]
[1720536757157,8.151,3069.6,3068.9,3.2584]
[1720536757349,7.41,3069.6,3068.9,3.30727224]
[1720536757567,7.41,3069.6,3069.2,3.25813]
[1720536757890,19.47,3070.0,3069.1,3.25828]
[1720536758102,1.947,3069.9,3069.1,3.25828]
[1720536758393,2.02843939,3069.9,3068.5,2.91373357]
[1720536758579,1.94062074,3069.8,3068.6,3.0]
[1720536758765,7.41,3070.2,3068.7,3.2587]
[1720536759087,7.41,3070.2,3068.6,3.0]
[1720536759088,7.41,3070.2,3068.6,3.04888842]
[1720536759301,7.41,3070.2,3068.9,3.25841]
[1720536759302,0.741,3070.1,3068.9,3.25841]
[1720536759508,0.741,3070.1,3069.0,3.25837]
[1720536759790,0.741,3070.1,3068.8,3.25854]
[1720536760004,0.8151,3070.0,3069.0,3.25838]
[1720536760163,0.8151,3070.0,3069.1,0.04886229]
[1720536760493,0.8151,3070.0,3068.6,6.8549822]
[1720536760658,0.8151,3070.0,3068.5,2.91373357]
[1720536760659,0.89654579,3070.0,3068.5,2.91373357]
[1720536761292,2.2975,3069.9,3068.5,2.91373357]
[1720536761486,0.63146159,3069.8,3068.0,6.74220969]
[1720536761654,0.67436,3069.7,3068.0,7.62760051]
[1720536761861,0.67436,3069.7,3067.9,7.04748]
[1720536761862,7.96,3069.6,3067.9,3.788]
[1720536762086,0.08147262,3069.5,3067.8,3.25964]
[1720536762408,0.55,3069.4,3067.8,3.585604]
[1720536762558,4.28800862,3069.5,3068.2,3.25922]
[1720536762559,1.206536,3069.5,3068.2,3.25922]
[1720536762765,1.22480086,3069.4,3068.3,0.04891778]
[1720536762976,7.41,3069.6,3068.6,3.25877]
[1720536763288,7.41,3069.6,3068.9,7.04642]
[1720536763643,7.41,3069.6,3069.0,3.2583]
[1720536763976,7.41,3070.1,3069.1,3.0]
[1720536764286,7.41,3070.1,3069.0,3.0]
[1720536764486,0.08144873,3070.0,3068.6,3.0]
[1720536764820,3.10324487,3069.9,3068.5,2.91373357]
[1720536765103,0.63146247,3069.8,3068.5,2.91373357]
[1720536765666,0.55,3069.8,3068.5,2.91373357]
[1720536765900,0.55,3069.8,3068.5,2.75644057]
[1720536766214,0.36532449,3069.7,3068.5,2.75644057]
[1720536766360,0.55,3069.6,3068.5,2.75644057]
[1720536766670,0.0814624,3069.5,3068.2,3.0]
[1720536766873,0.0814624,3069.5,3068.0,3.0]
[1720536767114,0.55,3069.6,3068.0,3.9643464]
[1720536767322,0.55,3069.6,3068.2,3.25914]
[1720536767610,0.55,3069.6,3068.3,3.0]
[1720536768684,0.63146236,3069.6,3068.0,3.0]
[1720536768893,0.44347869,3069.5,3067.5,9.26639057]
[1720536769096,10.848,3069.3,3067.5,3.25]
[1720536769300,3.438,3069.1,3067.1,6.01677057]
[1720536769603,7.65702855,3069.0,3067.1,6.01678057]
[1720536769802,1.12903982,3068.9,3067.2,0.92772406]
[1720536770117,0.55,3068.8,3067.3,3.30915184]
[1720536770281,0.55,3068.8,3067.4,3.68376759]
[1720536770282,7.96,3068.8,3067.4,3.68376759]
[1720536770479,3.0,3068.7,3067.5,0.04896693]
[1720536770791,3.0,3068.7,3067.2,0.92772406]
[1720536770792,1.096,3068.6,3067.2,0.92772406]
[1720536770995,1.096,3068.6,3067.3,3.0]
[1720536771518,0.63148729,3068.5,3067.1,2.75644057]
[1720536771813,1.04108729,3068.5,3067.1,2.75644057]
[1720536772184,3.38500095,3068.4,3067.1,2.75644057]
[1720536772401,10.848,3068.2,3066.4,3.788]
[1720536772715,4.64888204,3068.1,3066.2,5.732]
[1720536772923,4.67936764,3068.0,3066.2,5.732]
[1720536773214,0.93282497,3067.9,3066.4,3.26111]
[1720536773419,2.8326,3067.8,3066.2,3.2613]
[1720536773584,2.8326,3067.8,3066.4,3.26115]
[1720536773786,2.8326,3067.8,3066.5,3.3100593]
[1720536774010,2.8326,3067.8,3066.6,3.0]
[1720536774316,2.2826,3067.8,3066.7,0.04901643]
[1720536774535,7.41,3068.2,3066.9,7.04852]
[1720536774821,7.41,3068.2,3067.0,6.30948412]
[1720536776200,7.41,3068.2,3067.4,3.26002]
[1720536776425,19.47,3068.5,3067.5,3.0]
[1720536776721,19.47,3068.5,3067.4,3.0]
[1720536776906,2.688,3068.4,3067.4,3.0]
[1720536777484,2.688,3068.4,3067.2,3.30489941]
[1720536777799,7.41,3068.6,3067.3,3.0]
[1720536777986,1.291,3068.5,3067.4,0.3]
[1720536778187,1.291,3068.5,3067.1,6.26033]
[1720536778386,1.291,3068.5,3067.1,6.30931184]
[1720536778835,1.291,3068.5,3067.1,9.56965184]
[1720536778995,1.291,3068.5,3067.2,0.95696518]
[1720536778996,0.8701,3068.4,3067.2,0.95696518]
[1720536779325,0.8701,3068.4,3067.1,6.26033]
[1720536779629,0.8701,3068.4,3067.1,3.0]
[1720536779990,0.55,3068.3,3067.1,3.0]
[1720536780186,0.55,3068.3,3067.0,6.2605]
[1720536780421,0.55,3068.3,3067.0,4.79093155]
[1720536780589,0.08149533,3068.2,3067.0,3.0]
[1720536780924,0.08149533,3068.2,3066.2,3.26135]
[1720536780925,2.2546,3068.1,3066.4,7.04915]
[1720536781141,7.41,3067.8,3066.4,7.04915]
[1720536781633,7.41,3067.8,3066.1,3.26139]
[1720536781788,0.55,3067.7,3066.0,8.87332]
[1720536781990,4.37251663,3067.7,3066.0,5.6118]
[1720536782458,7.41,3067.4,3065.9,3.788]
[1720536782585,7.41,3067.4,3065.4,11.16043954]
[1720536782586,0.63152445,3067.3,3065.4,11.16043954]
[1720536782789,0.63152445,3067.3,3065.6,3.26191]
[1720536783024,0.63152445,3067.3,3065.7,6.01831057]
[1720536783327,0.80415245,3067.2,3065.9,3.26168]
[1720536783744,0.80415245,3067.2,3065.9,7.04968]
[1720536783952,0.80415245,3067.2,3066.0,3.0]
[1720536784117,0.80415245,3067.2,3066.0,3.04906038]
[1720536784311,0.80415245,3067.2,3066.0,3.0]
[1720536784506,0.80415245,3067.2,3065.7,2.75644057]
[1720536784507,0.55,3067.1,3065.7,2.75644057]
[1720536784745,2.35993251,3067.0,3065.7,2.75644057]
[1720536784921,0.84099325,3066.9,3065.4,7.89827954]
[1720536785130,7.41,3066.7,3065.1,3.2625]
[1720536785350,0.08153976,3066.6,3065.1,1.031324]
[1720536785650,3.438,3066.4,3064.3,3.26338]
[1720536785807,1.13010224,3066.5,3064.3,0.41508244]
[1720536785808,7.41,3066.0,3064.3,0.41508244]
[1720536786013,0.63156535,3065.9,3064.3,0.41508244]
[1720536786250,0.63156535,3065.9,3064.4,0.04916444]
[1720536786251,0.55,3065.9,3064.4,0.04916444]
[1720536786458,0.796,3065.8,3064.4,0.37276069]
[1720536786754,2.4205,3065.6,3063.5,3.2642]
[1720536787049,7.41,3065.2,3063.7,3.26401]
[1720536787555,7.41,3065.2,3063.8,3.2639]
[1720536788409,7.41,3065.2,3063.7,0.162]
[1720536789236,7.41,3065.2,3063.8,3.26389]
[1720536789453,0.741,3065.1,3063.9,3.342589]
[1720536789758,7.41,3065.2,3063.9,3.3917822]
[1720536789954,7.41,3065.2,3064.3,3.26335]
[1720536790126,7.41,3065.2,3064.4,3.31241477]
[1720536790328,7.41,3065.2,3064.3,3.26335]
[1720536790329,7.41,3065.2,3064.7,3.26288]
[1720536790536,7.41,3065.2,3064.8,0.04914471]
[1720536790748,7.41,3065.2,3064.8,3.04914471]
[1720536791240,7.41,3065.2,3064.8,3.0]
[1720536791630,7.41,3065.2,3064.6,3.0]
[1720536791819,8.151,3065.2,3064.1,3.26352]
[1720536792023,8.151,3065.2,3063.9,0.342589]
[1720536792239,0.8151,3065.1,3064.0,1.13492467]
[1720536792441,7.41,3065.2,3064.3,3.26337]
[1720536792643,7.41,3065.2,3064.8,3.26283]
[1720536792845,7.41,3065.2,3064.4,0.04915846]
[1720536792846,7.41,3065.2,3064.4,0.02581822]
[1720536793020,8.151,3065.2,3064.4,0.02581822]
[1720536793235,0.08156989,3065.1,3064.4,0.02581822]
[1720536793545,2.4585,3065.0,3064.4,0.02581822]
[1720536794162,7.41,3065.2,3064.4,0.02581822]
[1720536794326,7.41,3065.2,3064.5,3.59199082]
[1720536794532,7.41,3065.2,3064.6,3.31219865]
[1720536794731,7.41,3065.2,3064.7,3.0]
[1720536794961,7.41,3065.2,3064.5,3.32891082]
[1720536795265,7.41,3065.2,3064.6,0.6617969]
[1720536795476,7.41,3065.5,3065.4,3.26221]
[1720536795687,7.41,3066.1,3065.7,3.26185]
[1720536795834,7.41,3066.1,3065.8,3.0]
[1720536796525,7.41,3066.1,3065.1,7.25348]
[1720536796526,7.41,3066.1,3065.6,3.0]
[1720536796731,7.41,3066.1,3065.3,3.26228]
[1720536796976,7.41,3066.1,3065.4,3.0]
[1720536797130,7.41,3066.1,3065.5,3.31118807]
[1720536797335,7.41,3066.1,3065.6,6.26193]
[1720536797538,7.41,3066.1,3065.6,6.31101765]
[1720536797852,7.41,3066.1,3065.6,3.0]
[1720536798031,7.41,3066.1,3065.4,3.26221]
[1720536798229,7.41,3066.1,3065.8,3.26174]
[1720536798427,7.41,3066.1,3066.0,3.26157]
[1720536798631,7.41,3067.5,3066.0,5.3939]
[1720536798841,12.15,3068.0,3066.7,3.26082]
[1720536799042,1.215,3067.9,3066.8,0.326082]
[1720536799261,0.08149963,3068.3,3066.8,3.0]
[1720536799480,4.11731018,3068.2,3066.8,3.0]
[1720536799673,4.11731018,3068.2,3066.4,3.0]
[1720536800058,4.11731018,3068.2,3066.3,3.26124]
[1720536800367,4.11731018,3068.2,3066.4,3.0]
[1720536800368,3.84973102,3068.1,3066.4,3.0]
[1720536800556,3.91481302,3068.1,3066.3,3.26124]
[1720536800879,3.45290412,3068.0,3066.4,3.0]
[1720536801081,0.55,3067.9,3066.4,3.0]
[1720536801285,0.53375933,3067.8,3066.1,0.326157]
[1720536801443,0.63151853,3067.7,3066.1,0.326157]
[1720536802283,5.7577,3067.6,3065.9,4.11027954]
[1720536802492,2.3197,3067.6,3066.2,3.26128]
[1720536802788,0.28697,3067.5,3066.3,0.37516711]
[1720536803142,0.59779996,3068.2,3066.6,3.26091]
[1720536803342,0.59779996,3068.2,3066.7,0.04901656]
[1720536803546,2.3836,3068.3,3066.7,6.26078]
[1720536803787,2.3836,3068.3,3066.8,3.30972522]
[1720536804183,2.3836,3068.3,3066.9,6.2606]
[1720536804485,2.3836,3068.3,3067.0,0.04899305]
[1720536804982,2.3836,3068.3,3067.0,3.30947305]
[1720536805155,7.41,3068.3,3067.4,3.26001]
[1720536805368,7.41,3068.3,3067.6,3.25981]
[1720536805544,7.41,3068.3,3067.5,6.25988]
[1720536805748,7.41,3068.3,3067.5,3.0]
[1720536806087,7.41,3068.3,3067.3,3.0]
[1720536806320,7.41,3068.3,3067.4,3.26006]
[1720536806589,7.41,3068.3,3067.5,3.0]
[1720536806746,7.41,3068.3,3067.4,3.0]
[1720536806952,0.741,3068.2,3067.1,3.0]
[1720536807147,0.741,3068.2,3067.2,3.0]
[1720536807354,0.741,3068.2,3067.3,0.04899188]
[1720536807699,7.41,3068.3,3067.3,0.04899188]
[1720536807987,7.41,3068.3,3068.0,3.25939]
[1720536809391,7.41,3068.3,3068.2,3.25923]
[1720536809703,7.41,3068.8,3068.3,3.25903]
[1720536809988,7.41,3068.8,3068.4,3.30791644]
[1720536810151,7.41,3068.8,3068.5,6.91553464]
[1720536810352,7.41,3068.8,3068.6,3.25872]
[1720536810749,7.41,3068.8,3068.5,3.0]
[1720536810750,7.41,3068.8,3068.7,3.0]
[1720536811059,7.41,3068.8,3068.5,3.0]
[1720536811249,7.41,3068.8,3067.8,3.2596]
[1720536811449,7.41,3068.8,3067.9,3.0]
[1720536811676,7.41,3068.8,3067.9,0.04894026]
[1720536811881,7.41,3068.8,3067.9,3.04894026]
[1720536812275,7.41,3068.8,3068.1,3.25933]
[1720536812608,7.41,3068.8,3068.2,3.04892214]
[1720536812744,7.41,3068.8,3068.2,4.00568235]
[1720536813379,7.41,3068.8,3068.2,3.0]
[1720536813552,7.41,3068.8,3067.9,3.0]
[1720536814108,7.41,3068.8,3068.0,0.04894049]
[1720536814425,7.41,3068.8,3068.3,3.25912]
[1720536814574,7.41,3068.8,3068.4,3.04891131]
[1720536814778,7.41,3068.8,3068.5,0.30489113]
[1720536815076,7.41,3068.8,3068.5,3.0]
[1720536815287,7.41,3068.8,3068.3,3.0]
[1720536815990,7.41,3068.8,3068.2,3.25916]
[1720536816303,7.41,3068.8,3068.3,3.0]
[1720536816813,7.41,3068.8,3067.5,3.53559406]
[1720536816814,7.41,3068.8,3068.2,3.0]
[1720536817040,19.56,3069.1,3067.9,3.0]
[1720536817231,4.93878164,3069.0,3066.9,2.2904]
[1720536817521,4.93878164,3069.0,3067.1,3.26032]
[1720536817522,7.41,3068.6,3067.1,3.26032]
[1720536817690,7.41,3068.6,3067.3,3.26016]
[1720536817895,7.41,3068.6,3067.0,8.7029746]
[1720536817896,7.41,3068.6,3068.0,3.25938]
[1720536818210,26.88,3068.9,3068.2,3.25919]